Workbook

Sheet README
A2: Petrorisk 8.02: GES Scaling Tool
A4: INTRODUCTION
A5: The developed tool allows Registrants and Downstream Users (DU) to assess whether a Generic Exposure Scenario (GES), generated via PetroRisk 8.01, covers their specific Expsoure Scenario. Alternatively, the Scaling Tool can be used to support the generation of a DU Exposure Scenario (DU ES), by 'down-scaling' the GES to DU specific Operational Conditions (OC) and Risk Management Measures (RMM). However, the user should consider to use PetroRisk 8.01, rather than the Scaling Tool, when generating DU ESs.
A6: Where Registrants or DUs find themselves operating outside of the applicability of the Generic Exposure Scenario, please contact admin@super-sief.eu for potential refinement of the GES.
A7: The scaling tool is relevant to registrations of industrial uses. The scaling tool is not applicable to Professional and Consumer uses.
A9: DISCLAIMER
A10: The Petrorisk Scaling Tool has been prepared in good faith, based on information and guidance currently available. The tool may need to be updated in light of further guidance to be issued by the European Chemicals Agency (ECHA).
A11: No recipient of Petrorisk Scaling Tool shall: (i) copyright or patent it in any form; (ii) redistribute it to others without Concawe’s prior written authorization; (iii) make a monetary charge for it.
A12: Neither Concawe nor any of its Member Companies can accept any liability arising from the use of the tool. It is to be relied upon at the user's own risk.
A13: No representations or warranties are made with regards to its completeness or accuracy and no liability will be accepted for damages of any nature whatsoever resulting from the use of, or reliance on, the tool. The preceding disclaimer shall apply whether or not liability results, or is claimed to result, from negligence or other circumstances.
A15: MANUAL
A16: 1. In the 'Local Assessment' worksheet of the provided PetroRisk 8.02 output file, the user should identify the column relevant to his/her industrial use of interest.
A17: 2. Copy the entire column.
A18: 3. Paste-special the copied column values onto Column B (or 2) of the 'Local Assessment'worksheet of the Scaling Tool.
A19: 4. Provide the site-specific OCs and RMMs in the yellow cells in column C (or 3). If left blank, the Scaling Tool will populate cells with generic values.
A20: 5. Scroll down to the bottom of the 'Local Assessment' worksheet: the site-specific OCs and RMMs can be considered 'safe' if none of the RCRs are above a value of 1.
A21: 6. Please press the button "Recalculate Applied Onsite Air & Wastewater Treatment Efficiencies" if you wish to calculate and implement the minimal set of air and wastewater treatment efficiencies that can be considered 'safe.
A22: 7. Please carefully review the scaled values in column D (or 4). The Scaling Tool will highlight typical inconsistencies by a light red fill and a dark red text.
A23: 8. When considering generating a DU ES, column D (or 4) can be copied and its values pasted special onto the appropriate column of the PetroRisk 8.02 output file.
A25: IMPORTANT NOTICE
A26: In PetroRisk 8.02, changing wastewater treatment efficiency will change the relative composition of the effluent. When the treatment efficiency is increased, the effluent will be relatively enriched with hydrocarbons which are less easily removed from the wastewater: less volatile, less biodegradable but more water soluble and generally more toxic hydrocarbons. As a consequence, related risks do not scale linearly, but rather exponentially with wastewater treatment efficiency, with the equation parameters depending on the predicted influent concentration and removal efficiency of each hydrocarbon. The PetroRisk Scaling Tool however performs an approximative linear scaling: it will underestimate risks when the applied onsite wastewater removal efficiency is increased, but will conservatively, generally slightly, overestimate risks when the removal efficiency is decreased. Therefore, the Scaling Tool should only be used for conservatively 'down-scaling' the GES.
A28: DATE
A29: 2025-02-21

Sheet Local Assessment
A1: Property | B1: 1 | C1: DU EXPOSURE SCENARIO | D1: =B1 -> 1 | E1: Comment
A2: USE DESCRIPTION AND CONDITIONS
A3: Use Name | B3: Manufacture of substance | D3: =B3 -> Manufacture of substance
A4: Sector of Use | B4: Industrial | D4: =B4 -> Industrial
A5: Specific Environmental Release Category | B5: ESVOC SPERC 1.1.v3 | D5: =B5 -> ESVOC SPERC 1.1.v3
A6: (Generic) Environmental Release Category | B6: ERC 1 | D6: =B6 -> ERC 1
A7: Regional Fraction (%) | B7: 100.0 | D7: =D9/(B9+B8)*100 -> 100
A8: Annual Continental Tonnage (T/y) | B8: 0.0 | D8: =B8 -> 0.0
A9: Annual Regional Tonnage (T/y) | B9: 2395000.0 | D9: =IF(D12*D11>B9,D12*D11,B9) -> 2395000.0
A10: Local Fraction (%) | B10: 48.3 | D10: =D12*D11/D9*100 -> 48.3131524
A11: Release Days | B11: 300.0 | D11: =IF(C11="",B11,C11) -> 300.0
A12: Daily Site Tonnage (T/d) | B12: 3857.0 | D12: =IF(C12="",B12,C12) -> 3857.0
A13: Release to Air, before RMMs (%) | B13: 5 | D13: =IF(C13="",B13,C13)*1 -> 5
A14: Release to Water, before RMMs (%) | B14: 0.02 | D14: =IF(C33<>"",IF(C23<>"",100*C33*D20*0.000000001/D12/(1-D23/100),IF(C14<>"",C14,B14)),IF(C14<>"",C14,B14))*1 -> 0.02
A15: Release to Soil (%) | B15: 0.001 | D15: =B15 -> 0.001
A16: Release to Waste, before RMMs (%) | B16: 0.2 | D16: =IF(C16="",B16,C16)*1 -> 0.2
A17: Default Onsite Air Treatment | B17: Generic treatment | D17: =B17 -> Generic treatment
A18: Default Onsite Air Treatment Efficiency (%) | B18: 90.0 | D18: =B18*1 -> 90
A19: Applied Onsite Air Treatment Efficiency (%) | B19: 69.75 | D19: =IF(C19="",B19,C19)*1 -> 69.75
A20: Wastewater Flow (L/d) | B20: 4297000.0 | D20: =IF(C20="",B20,C20) -> 4297000.0
A21: Default Onsite Wastewater Treatment | B21: Biological treatment with primary oil-water separation | D21: =B21 -> Biological treatment with primary oil-water separation
A22: Default Onsite Wastewater Treatment Efficiency (%) | B22: 97.4 | D22: =B22*1 -> 97.4
A23: Applied Onsite Wastewater Treatment Efficiency (%) | B23: 99.65 | D23: =IF(C23<>"",C23*1,IF(C33<>"",1-C33*D20*0.000000001/(D12*D14/100),B23*1)) -> 99.65 | E23: If site wastewater is not treated: set to 0. Please note that it is not appropriate to increase the DU Applied Wastewater Treatment Efficiency (cell D23) above the Generic Value (cell B23). Please contact admin@super-sief.eu if the Generic Exposure Scenario does not adequately cover your site conditions.
A24: Release to Air, after RMMs (%) | B24: 1.51 | D24: =D13*(1-D19/100)+IF(OR(B14*1=0,B23*1=0),0,D14*(D23/100)*(B24-B13*(1-B19/100))/B14/(B23/100)) -> 1.51
A25: Release to Water, after RMMs (%) | B25: 0.0000701 | D25: =D14/100*(1-D23/100)*100 -> 7e-05
A26: Release to Waste, after RMMs (%) | B26: 0.401 | D26: =D16+D13*D19/100+IF(B23*1=0,0,(B26-B16-B13*B19/100)*D23/B23) -> 0.401
A27: Municipal Sewage Treatment (STP) | B27: None | D27: =B27 -> None | E27: PetroRisk assumes no connection to municipal wastewater treatment for industrial uses
A28: STP Efficiency (%) | B28: 0.0 | D28: =B28 -> 0.0 | E28: Current Scaling Tool does not allow to assign municipal wastewater treatment to industrial uses
A29: Application of STP Sludge on Agricultural Soil | B29: No | D29: =B29 -> No
A30: Riverine Dilution Factor (unitless) | B30: 10.0 | D30: =IF(C30="",B30,IF(C30*1=0,"N/A",C30)) -> 10.0 | E30: If site is not emitting to fresh water: set to 0 or "N/A"
A31: Marine Dilution Factor (unitless) | B31: 730.0 | D31: =IF(C31="",B31,IF(C31*1=0,"N/A",C31)) -> 730.0 | E31: If site is not emitting to seawater: set to 0 or "N/A"
A32: PREDICTED LOCAL CONCENTRATIONS
A33: Site Effluent Concentration (mg/L) | B33: 0.629 | D33: =IF(C33="",D12*D25/100/D20*1000000000,C33) -> 0.6283220852 | E33: Represents average effluent concentration during emission episode
A34: Concentration in Municipal STP (mg/L) | B34: 0 | D34: =IF(D27="None",0,D33*(1-D28/100)) -> 0
A35: Dissolved Concentration in Freshwater (mg/L) | B35: 0.0629 | D35: =IF(OR(D30=0,D30="N/A",B33*1=0),0,IF(D34=0,D33/D30/(B33/B30),D34/D30/(B34/B30)))*B35 -> 0.06283220852
A36: Concentration in Sediment (mg/kg dry weight) | B36: 0.450 | D36: =IF(B35*1=0,0,D35*B36/B35) -> 0.4495150053
A37: Dissolved Concentration in Seawater (mg/L) | B37: 0.000861 | D37: =IF(OR(D31=0,D31="N/A",B33*1=0),0,IF(D34=0,D33/D31/(B33/B31),D34/D31/(B34/B31)))*B37 -> 0.0008600720435
A38: Concentration in Marine Sediment (mg/kg dry weight) | B38: 0.00617 | D38: =IF(OR(D31=0,D31="N/A",B37*1=0),0,D37*B38/B37) -> 0.006163350184
A39: Concentration in Air (mg/m³) | B39: 16.3 | D39: =D12*D24/(B12*B24)*B39 -> 16.3
A40: Concentration in Agricultural Soil, 30-day average (mg/kg dry weight) | B40: 0.0989 | D40: =D39*B40/B39 -> 0.0989
A41: Concentration in Agricultural Soil, 180-day average (mg/kg dry weight) | B41: 0.0989 | D41: =D39*B41/B39 -> 0.0989
A42: Concentration in Freshwater Fish (mg/kg wet weight) | B42: 0.0503 | D42: =IF(B35*1=0,0,D35*B42/B35) -> 0.05024578837
A43: Concentration in Marine Fish (mg/kg wet weight) | B43: 0.000689 | D43: =IF(OR(D31=0,D31="N/A",B37*1=0),0,D37*B43/B37) -> 0.0006882574192
A44: Concentration in Marine Predators (mg/kg wet weight) | B44: 0.00000656 | D44: =IF(OR(D31=0,D31="N/A",B43*1=0),0,D43*B44/B43) -> 6.552929855e-06
A45: Concentration in Terrestrial Worms (mg/kg wet weight) | B45: 0.289 | D45: =D39*B45/B39 -> 0.289
A46: PREDICTED ENVIRONMENTAL CONCENTRATIONS | D46: =IF(C46="",B46,C46) -> 
A47: PEC Freshwater, dissolved (mg/L) | B47: 0.0629 | D47: =D35+B47-B35 -> 0.06283220852
A48: PEC Sediment (mg/kg dry weight) | B48: 0.451 | D48: =D36+B48-B36 -> 0.4505150053
A49: PEC Seawater, dissolved (mg/L) | B49: 0.000863 | D49: =D37+B49-B37 -> 0.0008620720435
A50: PEC Marine Sediment (mg/kg dry weight) | B50: 0.00618 | D50: =D38+B50-B38 -> 0.006173350184
A51: PEC Air (mg/m³) | B51: 16.3 | D51: =D39+B51-B39 -> 16.3
A52: PEC Agricultural Soil, 30-day average (mg/kg dry weight) | B52: 0.0989 | D52: =D40+B52-B40 -> 0.0989
A53: PEC Agricultural Soil, 180-day average (mg/kg dry weight) | B53: 0.0989 | D53: =D41+B53-B41 -> 0.0989
A54: PEC Freshwater Fish (mg/kg wet weight) | B54: 0.0504 | D54: =D42+B54-B42 -> 0.05034578837
A55: PEC Marine Fish (mg/kg wet weight) | B55: 0.000696 | D55: =D43+B55-B43 -> 0.0006952574192
A56: PEC Marine Predators (mg/kg wet weight) | B56: 0.00000691 | D56: =D44+B56-B44 -> 6.902929855e-06
A57: PEC Terrestrial Worms (mg/kg wet weight) | B57: 0.289 | D57: =D45+B57-B45 -> 0.289
A58: INDIRECT HUMAN EXPOSURE (MAN VIA ENVIRONMENT) | D58: =IF(C58="",B58,C58) -> 
A59: Local Concentration in Fish (mg/kg ww) | B59: 2.76 | D59: N/A
A60: Local Concentration in Root Crops (mg/kg ww) | B60: 0.0414 | D60: N/A
A61: Local Concentration in Potato (mg/kg ww) | B61: 0.0110 | D61: N/A
A62: Local Concentration in (Other) Leafy vegetables (mg/kg ww) | B62: 0.122 | D62: N/A
A63: Local Concentration in Lettuce (mg/kg ww) | B63: 0.192 | D63: N/A
A64: Local Concentration in Fruit (mg/kg ww) | B64: 0.0457 | D64: N/A
A65: Local Concentration in Cereals (mg/kg ww) | B65: 0.185 | D65: N/A
A66: Local Concentration in Meat (mg/kg ww) | B66: 0.198 | D66: N/A
A67: Local Concentration in Milk (mg/kg ww) | B67: 0.0658 | D67: N/A
A68: Local Concentration in Drinking Water (mg/L) | B68: 0.0256 | D68: N/A
A69: Local Concentration in Air, annual (mg/m³) | B69: 13.4 | D69: =D39*D11/365 -> 13.39726027
A70: PEC Fish (mg/kg ww) | B70: 2.77 | D70: N/A
A71: PEC Root (mg/kg ww) | B71: 0.0414 | D71: N/A
A72: PEC Potato (mg/kg ww) | B72: 0.0110 | D72: N/A
A73: PEC Leaf (mg/kg ww) | B73: 0.122 | D73: N/A
A74: PEC Lettuce (mg/kg ww) | B74: 0.192 | D74: N/A
A75: PEC Fruit (mg/kg ww) | B75: 0.0457 | D75: N/A
A76: PEC Cereal (mg/kg ww) | B76: 0.185 | D76: N/A
A77: PEC Meat (mg/kg ww) | B77: 0.198 | D77: N/A
A78: PEC Milk (mg/kg ww) | B78: 0.0658 | D78: N/A
A79: PEC Drinking Water (mg/L) | B79: 0.0256 | D79: N/A
A80: PEC Air, annual (mg/m³) | B80: 13.4 | D80: =D69+B80-B69 -> 13.39726027
A81: Daily Intake of Fish (kg ww/d) | B81: 0.00164286 | D81: =B81 -> 0.00164286
A82: Daily Intake of Root (kg ww/d) | B82: 0.0127143 | D82: =B82 -> 0.0127143
A83: Daily Intake of Potato (kg ww/d) | B83: 0.00282857 | D83: 0.00282857
A84: Daily Intake of Leaf (kg ww/d) | B84: 3.0E-4 | D84: 3.0E-4
A85: Daily Intake of Lettuce (kg ww/d) | B85: 2.57143E-4 | D85: 2.57143E-4
A86: Daily Intake of Fruit (kg ww/d) | B86: 0.00454286 | D86: 0.00454286
A87: Daily Intake of Cereal (kg ww/d) | B87: 0.00441429 | D87: 0.00441429
A88: Daily Intake of Meat (kg ww/d) | B88: 0.00237143 | D88: 0.00237143
A89: Daily Intake of Milk (kg ww/d) | B89: 0.0107714 | D89: 0.0107714
A90: Daily Intake of Drinking Water (L/d) | B90: 0.0285714 | D90: 0.0285714
A91: Daily Intake of Soil (kg ww/d) | B91: 0.00428571 | D91: 0.00428571
A92: Daily Intake of Air (m³/d) | B92: 0.548571 | D92: 0.548571
A93: Intake Dose via Ingestion (mg/kg bw/d) | B93: 0.00855 | D93: =B93-B94-B95+D94+D95 -> 0.008544282068
A94: Ingestion Dose resulting from Local Air Emissions (mg/kg bw/d) | B94: 0.00324 | D94: =IF(B13*1=0,0,D12*D13*(1-D19/100)*B94/(B12*B13*(1-B19/100))) -> 0.00324 | E94: Does not include air emission resulting from wastewater treatment
A95: Ingestion Dose resulting from Local Wastewater Emissions (mg/kg bw/d) | B95: 0.00530 | D95: =IF(B35*1=0,0,D35/B35*(B95-((B24/100-B13*(1-B19/100)/100)*B12)*(B94/B12/B13*100/(1-B19/100))))+IF(B13*1=0,0,((D24/100-D13*(1-D19/100)/100)*D12)*(B94/B12/B13*100/(1-B19/100))) -> 0.005294282068 | E95: Includes contribution from wastewater treatment via effluent and air
A96: Intake Dose via Inhalation (mg/kg bw/d) | B96: 7.34 | D96: =D80*B96/B80 -> 7.338499284 | E96: Includes contribution from direct air emission and from wastewater treatment
A97: RISK CHARACTERIZATION | D97: =IF(C97="",B97,C97) -> 
A98: RCR STP Micro-organisms (unitless) | B98: 0 | D98: =ROUND(IF(B34*1=0,0,D34*B98/B34),4) -> 0
A99: RCR Freshwater Organisms (unitless) | B99: 0.533 | D99: =ROUND(D47*B99/B47,4) -> 0.5324
A100: RCR Sediment Organisms (unitless) | B100: 0.610 | D100: =ROUND(D48*B100/B48,4) -> 0.6093
A101: RCR Seawater Organisms (unitless) | B101: 0.00733 | D101: =ROUND(D49*B101/B49,4) -> 0.0073
A102: RCR Marine Sediment Organisms (unitless) | B102: 0.00837 | D102: =ROUND(D50*B102/B50,4) -> 0.0084
A103: RCR Agricultural Soil Organisms (unitless) | B103: 0.932 | D103: =ROUND(D52*B103/B52,4) -> 0.932
A104: RCR Freshwater (Fish-eating) Predators (unitless) | B104: 0.00575 | D104: =ROUND(D54*B104/B54,4) -> 0.0057
A105: RCR Marine (Fish-eating) Predators (unitless) | B105: 0.0000793 | D105: =ROUND(D55*B105/B55,4) -> 0.0001
A106: RCR Marine Top Predators (unitless) | B106: 7.88E-7 | D106: =ROUND(D56*B106/B56,4) -> 0
A107: RCR Terrestrial (Worm-eating) Predators (unitless) | B107: 0.0329 | D107: =ROUND(D57*B107/B57,4) -> 0.0329
A108: RCR Human Ingestion (unitless) | B108: 0.0000855 | D108: =ROUND(D93*B108/B93,4) -> 0.0001
A109: RCR Human Inhalation (unitless) | B109: 0.229 | D109: =ROUND(D96*B109/B96,4) -> 0.229
A110: RCR Human Exposure (unitless) | B110: 0.230 | D110: =ROUND(D108+D109,4) -> 0.2291
A111: MSafe (kg/d) | B111: 4.14E+6 | D111: =D12*1000/MAX(D$98:D$110) -> 4138412.017

Sheet HiddenSheet (hidden)
B2: 1 | C2: Riverine
B3: 2 | C3: Marine/Estuary

Sheet Database (hidden)
C3: Max | D3: Emission Factors | G3: Local Default Operating Conditions | M3: PEC | N3: PEC | O3: PEC | P3: PEC | Q3: PEC | R3: PEC | S3: PEC | T3: PEC | U3: PEC | V3: PEC | W3: PEC | X3: PEC | Y3: PEC | Z3: PEC | AA3: PEC | AB3: PEC | AC3: PEC | AD3: PEC | AE3: RCR | AF3: RCR | AG3: RCR | AH3: RCR | AI3: RCR | AJ3: RCR | AK3: RCR | AL3: RCR | AM3: RCR | AN3: HI | AO3: HI | AP3: Total HI | AQ3: HI - RCR | AR3: HI - RCR | AS3: HI - RCR | AT3: DNEL
C4: Local Site Tonnage | D4: Air EF | E4: Water EF | F4: Soil EF | G4: Duration of Site Operation | H4: Wastewater flow | I4: Dilution Factor | J4: Dilution Factor | K4: Sludge | L4: Default removal efficiency | M4: Effluent | N4: Fresh Water | O4: Fresh Water Sediment | P4: Marine Water | Q4: Marine Sediment | R4: Natural Soil | S4: Air | T4: Sludge | U4: Ground water | V4: Fish | W4: Leaf | X4: Root | Y4: Meat | Z4: Milk | AA4: Drinking Water | AB4: fish.oral | AC4: predator.oral | AD4: worm.oral | AE4: Effluent | AF4: Fresh Water | AG4: Fresh Water Sediment | AH4: Marine Water | AI4: Marine Sediment | AJ4: Natural Soil | AK4: fish.oral | AL4: predator.oral | AM4: worm.oral | AN4: Inhalation | AO4: Indirect Dose | AP4: Total | AQ4: Inhalation | AR4: Indirect Dose | AS4: Total | AT4: DNEL
B5: Substance | C5: T/yr | D5: % | E5: % | F5: % | G5: days | H5: m3/d | I5: River | J5: Marine | K5: Application | L5: (%) | M5: mg/L | N5: mg/L | O5: mg/kgw | P5: mg/L | Q5: mg/kgw | R5: mg/kgw | S5: mg/m3 | T5: mg/kgw | U5: mg/L | V5: mg/kgw | W5: mg/kgw | X5: mg/kgw | Y5: mg/kgw | Z5: mg/kgw | AA5: mg/L | AB5: mg/kgw | AC5: mg/kgw | AD5: mg/kgw | AE5: -- | AF5: -- | AG5: -- | AH5: -- | AI5: -- | AJ5: -- | AK5: -- | AL5: -- | AM5: -- | AN5: ug/kg/d | AO5: ug/kg/d | AP5: ug/kg/d | AQ5: -- | AR5: -- | AS5: -- | AT5: ug/kg/d
A6: 1 | B6: 1 Naphtha | C6: 600000 | D6: 0.04901960784 | E6: 0.05337396208 | F6: 0.01 | G6: 300 | H6: 10000 | I6: 10 | J6: 100 | K6: N | L6: 95.45060719 | M6: 4.955425727 | N6: 0.4957869695 | O6: 2.580182176 | P6: 0.04956886042 | Q6: 0.2579655132 | R6: 0.0008495765978 | S6: 0.2461636517 | T6: 4677.103461 | U6: 0.0002094218326 | V6: 10.37866364 | W6: 0.0009269548056 | X6: 0.001077540667 | Y6: 0.001166859068 | Z6: 0.0005552837632 | AA6: 0.2038453188 | AB6: 5.193851452 | AC6: 0.1058342378 | AD6: 0.0006050305356 | AE6: 0.5072875306 | AF6: 0.7921509355 | AG6: 0.9090909384 | AH6: 0.07919793778 | AI6: 0.09088941148 | AJ6: 0.001442727447 | AK6: 0 | AL6: 0 | AM6: 0 | AN6: 70.33244378 | AO6: 22.90608309 | AP6: 93.23852687 | AQ6: 0.7033244378 | AR6: 0.2290608309 | AS6: 0.9323852687 | AT6: 100
A7: 2 | B7: 2 Straight Run Gas Oil | C7: 600000 | D7: 0.1 | E7: 0.003 | F7: 0.01 | G7: 300 | H7: 10000 | I7: 10 | J7: 100 | K7: N | L7: 94.07725754 | M7: 0.3829399754 | N7: 0.03819251547 | O7: 1.904109132 | P7: 0.003818689272 | Q7: 0.1903924892 | R7: 0.004702203515 | S7: 0.4583542177 | T7: 1140.553234 | U7: 0.0004028050555 | V7: 4.815326896 | W7: 0.01985108876 | X7: 0.01109980269 | Y7: 0.08951908075 | Z7: 0.02835605998 | AA7: 0.01909810262 | AB7: 3.060380354 | AC7: 0.178785321 | AD7: 0.007263613657 | AE7: 0.5715414701 | AF7: 0.84388234 | AG7: 0.9552399653 | AH7: 0.0843801099 | AI7: 0.09551479508 | AJ7: 0.009906543812 | AK7: 0 | AL7: 0 | AM7: 0 | AN7: 130.9582955 | AO7: 9.4699346 | AP7: 140.4282301 | AQ7: 0.1007371504 | AR7: 0.007284565077 | AS7: 0.1080217155 | AT7: 1300
A8: 3 | B8: 3 Cracked Gas Oil | C8: 279634.7 | D8: 0.1 | E8: 0.004477808018 | F8: 0.01 | G8: 300 | H8: 10000 | I8: 10 | J8: 100 | K8: N | L8: 92.33545572 | M8: 0.3449859015 | N8: 0.03440563968 | O8: 1.696484065 | P8: 0.003440204456 | Q8: 0.1696319404 | R8: 0.00297193094 | S8: 0.2137066057 | T8: 1028.882069 | U8: 0.0004511460745 | V8: 4.965498123 | W8: 0.0475388129 | X8: 0.006654636648 | Y8: 0.03856855544 | Z8: 0.01223745159 | AA8: 0.02048284468 | AB8: 2.631084537 | AC8: 0.07790957045 | AD8: 0.004125080354 | AE8: 0.5307526609 | AF8: 0.8029842794 | AG8: 0.9090931027 | AH8: 0.08029119459 | AI8: 0.09090111967 | AJ8: 0.003915899793 | AK8: 0.1547696786 | AL8: 0.004582915909 | AM8: 0.0002426517855 | AN8: 61.05900578 | AO8: 9.858203929 | AP8: 70.91720971 | AQ8: 0.06105900578 | AR8: 0.009858203929 | AS8: 0.07091720971 | AT8: 1000
A9: 4 | B9: 4 Vacuum Gas Oil | C9: 600000 | D9: 0.1 | E9: 0.003 | F9: 0.01 | G9: 300 | H9: 10000 | I9: 10 | J9: 100 | K9: N | L9: 94.10948114 | M9: 0.3644736795 | N9: 0.03637968568 | O9: 1.407057024 | P9: 0.00363743021 | Q9: 0.1406876418 | R9: 0.005644830981 | S9: 0.458335473 | T9: 1279.383288 | U9: 0.0003702209254 | V9: 3.974456222 | W9: 0.02644492266 | X9: 0.01435599321 | Y9: 0.1189508447 | Z9: 0.03764151288 | AA9: 0.01745702959 | AB9: 2.340274708 | AC9: 0.1120281676 | AD9: 0.009504913966 | AE9: 0.3601813029 | AF9: 0.5352144181 | AG9: 0.60605247 | AH9: 0.05351510267 | AI9: 0.06059806627 | AJ9: 0.01380472494 | AK9: 0 | AL9: 0 | AM9: 0 | AN9: 130.9529399 | AO9: 86.1364931 | AP9: 217.089433 | AQ9: 0.1007330307 | AR9: 0.06625884084 | AS9: 0.1669918715 | AT9: 1300
A10: 5 | B10: 5 Other Gas Oil | C10: 600000 | D10: 0.1 | E10: 0.003 | F10: 0.01 | G10: 300 | H10: 10000 | I10: 10 | J10: 100 | K10: N | L10: 94.27054629 | M10: 0.3523372077 | N10: 0.03516728567 | O10: 1.381316013 | P10: 0.003516198948 | Q10: 0.1381131894 | R10: 0.00545035368 | S10: 0.4583607181 | T10: 1263.792044 | U10: 0.0004043101426 | V10: 3.737915775 | W10: 0.02588118835 | X10: 0.01344338987 | Y10: 0.1075921852 | Z10: 0.034051935 | AA10: 0.01620246541 | AB10: 2.269897532 | AC10: 0.1170600232 | AD10: 0.00883191859 | AE10: 0.335108887 | AF10: 0.4955066072 | AG10: 0.5610556366 | AH10: 0.04954463983 | AI10: 0.05609874385 | AJ10: 0.01221251468 | AK10: 0.1335233843 | AL10: 0.006885883719 | AM10: 0.0005195246229 | AN10: 130.9601528 | AO10: 7.856761657 | AP10: 138.8169144 | AQ10: 0.1007385791 | AR10: 0.006043662813 | AS10: 0.1067822419 | AT10: 1300
A11: 6 | B11: 6 Kerosene | C11: 600000 | D11: 0.1 | E11: 0.01196929621 | F11: 0.01 | G11: 300 | H11: 10000 | I11: 10 | J11: 100 | K11: N | L11: 94.69082315 | M11: 1.28404315 | N11: 0.1283542822 | O11: 2.280868717 | P11: 0.01283316061 | Q11: 0.2280436989 | R11: 0.004454827504 | S11: 0.4618771405 | T11: 3350.994823 | U11: 0.0003464048696 | V11: 8.354416617 | W11: 0.01136255815 | X11: 0.01047443497 | Y11: 0.06334704278 | Z11: 0.02006992432 | AA11: 0.0569263201 | AB11: 4.225195464 | AC11: 0.09204740545 | AD11: 0.006762733813 | AE11: 0.5235336978 | AF11: 0.8011553453 | AG11: 0.9090913852 | AH11: 0.08010054714 | AI11: 0.09089213576 | AJ11: 0.01094721772 | AK11: 0 | AL11: 0 | AM11: 0 | AN11: 131.9648445 | AO11: 16.03706416 | AP11: 148.0019087 | AQ11: 0.007019406622 | AR11: 0.0008530353278 | AS11: 0.00787244195 | AT11: 18800
A12: 7 | B12: 7 MK-1 | C12: 348754.1 | D12: 0.1 | E12: 0.001 | F12: 0.01 | G12: 300 | H12: 10000 | I12: 10 | J12: 100 | K12: N | L12: 95.2750395 | M12: 0.05497381464 | N12: 0.005478128738 | O12: 0.3748789577 | P12: 0.0005477061023 | Q12: 0.03748095847 | R12: 0.004846752618 | S12: 0.2660802772 | T12: 472.4423524 | U12: 8.609473168e-05 | V12: 1.01522775 | W12: 0.005741315479 | X12: 0.01382509311 | Y12: 0.1190396757 | Z12: 0.03764042854 | AA12: 0.002237593353 | AB12: 0.6032884314 | AC12: 0.02951657223 | AD12: 0.009422902103 | AE12: 0.1854935164 | AF12: 0.2766375477 | AG12: 0.313091723 | AH12: 0.02765788206 | AI12: 0.03130252582 | AJ12: 0.01621740872 | AK12: 0 | AL12: 0 | AM12: 0 | AN12: 76.02290592 | AO12: 2.719600216 | AP12: 78.74250614 | AQ12: 0.004043771592 | AR12: 0.000144659586 | AS12: 0.004188431178 | AT12: 18800
A13: 8 | B13: 8 Lubricant Base Oil | C13: 1300 | D13: 0.001 | E13: 0.001 | F13: 0.01 | G13: 100 | H13: 10000 | I13: 10 | J13: 100 | K13: N | L13: 93.93006119 | M13: 0.0008804502305 | N13: 8.744759126e-05 | O13: 0.00961125134 | P13: 8.743469282e-06 | Q13: 0.0009610738878 | R13: 1.970377657e-07 | S13: 1.065786127e-05 | T13: 2.860282053 | U13: 4.244276738e-08 | V13: 0.005637290385 | W13: 6.202729104e-06 | X13: 7.732692666e-07 | Y13: 2.848096643e-05 | Z13: 9.010951942e-06 | AA13: 1.276041719e-05 | AB13: 0.005477580132 | AC13: 0.0007944861435 | AD13: 7.513057946e-07 | AE13: 0.002696906478 | AF13: 0.003796764581 | AG13: 0.004294598608 | AH13: 0.0003796497242 | AI13: 0.0004294296049 | AJ13: 1.901619793e-07 | AK13: 0.0005870932617 | AL13: 8.515392749e-05 | AM13: 8.052580864e-08 | AN13: 0.003045102001 | AO13: 0.02750426859 | AP13: 0.03054937059 | AQ13: 4.350145715e-06 | AR13: 3.929181227e-05 | AS13: 4.364195798e-05 | AT13: 700
A14: 9 | B14: 9 Unrefined/Acid Treated Oil | C14: 5127 | D14: 0.01 | E14: 0.001 | F14: 0.01 | G14: 100 | H14: 10000 | I14: 10 | J14: 100 | K14: N | L14: 93.6176912 | M14: 0.003915089629 | N14: 0.0003877345561 | O14: 0.05934190898 | P14: 3.876822812e-05 | Q14: 0.005934266965 | R14: 4.30366405e-06 | S14: 0.0003943620621 | T14: 12.51313987 | U14: 2.950625213e-07 | V14: 0.03134077661 | W14: 2.728438305e-05 | X14: 9.405878753e-06 | Y14: 9.020506565e-05 | Z14: 2.853715654e-05 | AA14: 6.173647071e-05 | AB14: 0.03322497517 | AC14: 0.006474963196 | AD14: 7.459725728e-06 | AE14: 0.01868969597 | AF14: 0.02584540588 | AG14: 0.02922815925 | AH14: 0.00258446134 | AI14: 0.002922726185 | AJ14: 6.466935667e-06 | AK14: 0.003561090586 | AL14: 0.0006939939117 | AM14: 7.995418787e-07 | AN14: 0.1126748298 | AO14: 0.2140164772 | AP14: 0.326691307 | AQ14: 0.0001609640426 | AR14: 0.0003057378246 | AS14: 0.0004667018672 | AT14: 700
A15: 10 | B15: 10 Distillate Aromatic Extr | C15: 78295.8 | D15: 0.01 | E15: 0.001 | F15: 0.01 | G15: 300 | H15: 10000 | I15: 10 | J15: 100 | K15: N | L15: 81.09235853 | M15: 0.05929563438 | N15: 0.005890522407 | O15: 0.6164968038 | P15: 0.0005890072487 | Q15: 0.06164819869 | R15: 6.914983979e-05 | S15: 0.005996727539 | T15: 132.1132923 | U15: 3.955303936e-06 | V15: 1.708939819 | W15: 0.0007434041344 | X15: 0.0001486552212 | Y15: 0.001214870166 | Z15: 0.0003842231443 | AA15: 0.003701250604 | AB15: 1.101893707 | AC15: 0.06952547062 | AD15: 0.0001150674081 | AE15: 0.168302861 | AF15: 0.2459552735 | AG15: 0.2782538437 | AH15: 0.02459445267 | AI15: 0.02782416784 | AJ15: 9.877183785e-05 | AK15: 0.1181022194 | AL15: 0.00745181893 | AM15: 1.233305553e-05 | AN15: 1.71335004 | AO15: 2.935156773 | AP15: 4.648506813 | AQ15: 0.002447642914 | AR15: 0.004193081104 | AS15: 0.006640724019 | AT15: 700
A16: 11 | B16: 11 Treated DAE | C16: 5071.9 | D16: 0.001 | E16: 0.001 | F16: 0.01 | G16: 100 | H16: 10000 | I16: 10 | J16: 100 | K16: N | L16: 71.04754063 | M16: 0.01547010606 | N16: 0.001538598554 | O16: 0.1342269627 | P16: 0.0001538491144 | Q16: 0.01342180895 | R16: 5.777039533e-07 | S16: 3.961115718e-05 | T16: 31.38182253 | U16: 2.664576304e-08 | V16: 0.1466846294 | W16: 2.619503384e-05 | X16: 1.288959331e-06 | Y16: 1.269983534e-05 | Z16: 4.016249184e-06 | AA16: 0.0003316113707 | AB16: 0.07413873284 | AC16: 0.001633496661 | AD16: 1.497519184e-06 | AE16: 0.03442307958 | AF16: 0.05258184751 | AG16: 0.05949873476 | AH16: 0.005257827746 | AI16: 0.005949469497 | AJ16: 7.659399365e-07 | AK16: 0.007946273616 | AL16: 0.000175080028 | AM16: 1.605058075e-07 | AN16: 0.01131746895 | AO16: 0.250999427 | AP16: 0.262316896 | AQ16: 1.616781279e-05 | AR16: 0.00035857061 | AS16: 0.0003747384228 | AT16: 700
A17: 12 | B17: 12 Residual Aromatic Extr | C17: 4286.4 | D17: 0.01 | E17: 0.001 | F17: 0.01 | G17: 100 | H17: 10000 | I17: 10 | J17: 100 | K17: N | L17: 76.31944897 | M17: 0.0112849313 | N17: 0.0011224214 | O17: 0.09726626874 | P17: 0.0001122338782 | Q17: 0.009725980004 | R17: 3.349199488e-06 | S17: 0.0003280163133 | T17: 24.64280901 | U17: 1.075899802e-07 | V17: 0.1062170732 | W17: 2.378431952e-05 | X17: 7.168285678e-06 | Y17: 1.92447695e-05 | Z17: 6.086032918e-06 | AA17: 0.0002387889349 | AB17: 0.05407655982 | AC17: 0.001268334238 | AD17: 4.959412192e-06 | AE17: 0.02518077957 | AF17: 0.03842095825 | AG17: 0.04347565529 | AH17: 0.003841825074 | AI17: 0.004347259133 | AJ17: 6.750132665e-06 | AK17: 0 | AL17: 0 | AM17: 0 | AN17: 0.09371890918 | AO17: 0.1819006004 | AP17: 0.2756195096 | AQ17: 1.802286715e-05 | AR17: 3.498088469e-05 | AS17: 5.300375184e-05 | AT17: 5200
A18: 13 | B18: 13 Heavy Fuel Oil | C18: 600000 | D18: 0.001 | E18: 0.0005501258717 | F18: 0.01 | G18: 300 | H18: 10000 | I18: 10 | J18: 100 | K18: N | L18: 88.83831302 | M18: 0.1294300333 | N18: 0.01283672997 | O18: 1.66231976 | P18: 0.001283542744 | Q18: 0.1662230118 | R18: 0.0001369638367 | S18: 0.004682260971 | T18: 486.27617 | U18: 5.68005645e-06 | V18: 3.341877512 | W18: 0.009105825527 | X18: 0.0003780497597 | Y18: 0.01258987387 | Z18: 0.003980747008 | AA18: 0.007642322571 | AB18: 2.444552125 | AC18: 0.1915784044 | AD18: 0.00032835766 | AE18: 0.5550558876 | AF18: 0.8037035569 | AG18: 0.9090910598 | AH18: 0.08036560586 | AI18: 0.09090373106 | AJ18: 0.000179897615 | AK18: 0.0366499569 | AL18: 0.002872239946 | AM18: 4.922903448e-06 | AN18: 1.337788314 | AO18: 5.952792456 | AP18: 7.29058077 | AQ18: 0.06688941568 | AR18: 0.2976396228 | AS18: 0.3645290385 | AT18: 20
C22: =COLUMN() -> 3 | D22: =COLUMN() -> 4 | E22: =COLUMN() -> 5 | F22: =COLUMN() -> 6 | G22: =COLUMN() -> 7 | H22: =COLUMN() -> 8 | I22: =COLUMN() -> 9 | J22: =COLUMN() -> 10 | K22: =COLUMN() -> 11 | L22: =COLUMN() -> 12 | M22: =COLUMN() -> 13 | N22: =COLUMN() -> 14 | O22: =COLUMN() -> 15 | P22: =COLUMN() -> 16 | Q22: =COLUMN() -> 17 | R22: =COLUMN() -> 18 | S22: =COLUMN() -> 19 | T22: =COLUMN() -> 20 | U22: =COLUMN() -> 21 | V22: =COLUMN() -> 22 | W22: =COLUMN() -> 23 | X22: =COLUMN() -> 24 | Y22: =COLUMN() -> 25 | Z22: =COLUMN() -> 26 | AA22: =COLUMN() -> 27 | AB22: =COLUMN() -> 28 | AC22: =COLUMN() -> 29 | AD22: =COLUMN() -> 30 | AE22: =COLUMN() -> 31 | AF22: =COLUMN() -> 32 | AG22: =COLUMN() -> 33 | AH22: =COLUMN() -> 34 | AI22: =COLUMN() -> 35 | AJ22: =COLUMN() -> 36 | AK22: =COLUMN() -> 37 | AL22: =COLUMN() -> 38 | AM22: =COLUMN() -> 39 | AN22: =COLUMN() -> 40 | AO22: =COLUMN() -> 41 | AP22: =COLUMN() -> 42 | AQ22: =COLUMN() -> 43 | AR22: =COLUMN() -> 44 | AS22: =COLUMN() -> 45 | AT22: 46
B23: Working Output | C23: =VLOOKUP(#REF!,Database!$A$6:$AT$18,C$22,FALSE) ->  | D23: =VLOOKUP(#REF!,Database!$A$6:$AT$18,D$22,FALSE) ->  | E23: =VLOOKUP(#REF!,Database!$A$6:$AT$18,E$22,FALSE) ->  | F23: =VLOOKUP(#REF!,Database!$A$6:$AT$18,F$22,FALSE) ->  | G23: =VLOOKUP(#REF!,Database!$A$6:$AT$18,G$22,FALSE) ->  | H23: =VLOOKUP(#REF!,Database!$A$6:$AT$18,H$22,FALSE) ->  | I23: =VLOOKUP(#REF!,Database!$A$6:$AT$18,I$22,FALSE) ->  | J23: =VLOOKUP(#REF!,Database!$A$6:$AT$18,J$22,FALSE) ->  | K23: =VLOOKUP(#REF!,Database!$A$6:$AT$18,K$22,FALSE) ->  | L23: =VLOOKUP(#REF!,Database!$A$6:$AT$18,L$22,FALSE) ->  | M23: =VLOOKUP(#REF!,Database!$A$6:$AT$18,M$22,FALSE) ->  | N23: =VLOOKUP(#REF!,Database!$A$6:$AT$18,N$22,FALSE) ->  | O23: =VLOOKUP(#REF!,Database!$A$6:$AT$18,O$22,FALSE) ->  | P23: =VLOOKUP(#REF!,Database!$A$6:$AT$18,P$22,FALSE) ->  | Q23: =VLOOKUP(#REF!,Database!$A$6:$AT$18,Q$22,FALSE) ->  | R23: =VLOOKUP(#REF!,Database!$A$6:$AT$18,R$22,FALSE) ->  | S23: =VLOOKUP(#REF!,Database!$A$6:$AT$18,S$22,FALSE) ->  | T23: =VLOOKUP(#REF!,Database!$A$6:$AT$18,T$22,FALSE) ->  | U23: =VLOOKUP(#REF!,Database!$A$6:$AT$18,U$22,FALSE) ->  | V23: =VLOOKUP(#REF!,Database!$A$6:$AT$18,V$22,FALSE) ->  | W23: =VLOOKUP(#REF!,Database!$A$6:$AT$18,W$22,FALSE) ->  | X23: =VLOOKUP(#REF!,Database!$A$6:$AT$18,X$22,FALSE) ->  | Y23: =VLOOKUP(#REF!,Database!$A$6:$AT$18,Y$22,FALSE) ->  | Z23: =VLOOKUP(#REF!,Database!$A$6:$AT$18,Z$22,FALSE) ->  | AA23: =VLOOKUP(#REF!,Database!$A$6:$AT$18,AA$22,FALSE) ->  | AB23: =VLOOKUP(#REF!,Database!$A$6:$AT$18,AB$22,FALSE) ->  | AC23: =VLOOKUP(#REF!,Database!$A$6:$AT$18,AC$22,FALSE) ->  | AD23: =VLOOKUP(#REF!,Database!$A$6:$AT$18,AD$22,FALSE) ->  | AE23: =VLOOKUP(#REF!,Database!$A$6:$AT$18,AE$22,FALSE) ->  | AF23: =VLOOKUP(#REF!,Database!$A$6:$AT$18,AF$22,FALSE) ->  | AG23: =VLOOKUP(#REF!,Database!$A$6:$AT$18,AG$22,FALSE) ->  | AH23: =VLOOKUP(#REF!,Database!$A$6:$AT$18,AH$22,FALSE) ->  | AI23: =VLOOKUP(#REF!,Database!$A$6:$AT$18,AI$22,FALSE) ->  | AJ23: =VLOOKUP(#REF!,Database!$A$6:$AT$18,AJ$22,FALSE) ->  | AK23: =VLOOKUP(#REF!,Database!$A$6:$AT$18,AK$22,FALSE) ->  | AL23: =VLOOKUP(#REF!,Database!$A$6:$AT$18,AL$22,FALSE) ->  | AM23: =VLOOKUP(#REF!,Database!$A$6:$AT$18,AM$22,FALSE) ->  | AN23: =VLOOKUP(#REF!,Database!$A$6:$AT$18,AN$22,FALSE) ->  | AO23: =VLOOKUP(#REF!,Database!$A$6:$AT$18,AO$22,FALSE) ->  | AP23: =VLOOKUP(#REF!,Database!$A$6:$AT$18,AP$22,FALSE) ->  | AQ23: =VLOOKUP(#REF!,Database!$A$6:$AT$18,AQ$22,FALSE) ->  | AR23: =VLOOKUP(#REF!,Database!$A$6:$AT$18,AR$22,FALSE) ->  | AS23: =VLOOKUP(#REF!,Database!$A$6:$AT$18,AS$22,FALSE) ->  | AT23: =VLOOKUP(#REF!,Database!$A$6:$AT$18,AT$22,FALSE) -> 
